{"text_format":"1","workbook":"xlsx","n_sheets":1,"sheets":["Interactive charts"],"not_rendered":{"charts":8,"images":6,"macros":1,"external_links":1,"defined_names":2,"comments":0,"pivot_tables":0},"unopened":[],"bounds":{"document_bytes":16777216,"sheet_cells":100000,"rows_first":2000,"rows_last":500,"rows_between":2000,"halvings":0,"cell_chars":16384,"cell_head_chars":4096},"cells_cut":0,"cells_raw":0,"read":"whole","date_system":"1900"}

{"sheet":"Interactive charts","index":0,"n_rows":70,"n_cols":93,"rows_kept":70,"cut":false,"hidden":false,"merged":[[66,32,66,33],[66,34,66,35],[66,36,66,37],[67,32,67,33],[67,34,67,35],[67,36,67,37],[64,32,64,33],[64,34,64,35],[64,36,64,37],[65,32,65,33],[65,34,65,35],[65,36,65,37],[59,32,59,33],[59,34,59,35],[59,36,59,37],[63,32,63,33],[63,34,63,35],[63,36,63,37],[57,32,57,33],[57,34,57,35],[57,36,57,37],[58,32,58,33],[58,34,58,35],[58,36,58,37],[55,32,55,33],[55,34,55,35],[55,36,55,37],[56,32,56,33],[56,34,56,35],[56,36,56,37],[48,36,48,37],[49,32,49,33],[49,34,49,35],[49,36,49,37],[50,32,50,33],[50,34,50,35],[50,36,50,37],[42,14,43,14],[44,17,68,26],[46,32,46,33],[46,34,46,35],[46,36,46,37],[47,32,47,33],[47,34,47,35],[47,36,47,37],[48,32,48,33],[48,34,48,35],[27,58,28,58],[29,54,29,55],[30,54,30,55],[31,54,31,55],[34,15,36,17],[34,19,36,21],[34,23,36,25],[34,27,36,29],[27,49,27,50],[27,51,27,52],[27,53,28,53],[27,54,28,55],[27,56,28,56],[27,57,28,57],[13,14,15,29],[24,14,25,18],[24,19,25,21],[24,23,25,25],[24,27,25,29],[27,48,28,48],[6,87,7,87],[6,88,7,88],[6,89,7,89],[6,90,7,90],[6,91,7,91],[10,14,12,29],[6,79,7,79],[6,80,7,80],[6,83,7,83],[6,84,7,84],[6,85,7,85],[6,86,7,86],[6,73,7,73],[6,74,7,74],[6,75,7,75],[6,76,7,76],[6,77,7,77],[6,78,7,78],[6,65,7,65],[6,66,7,66],[6,67,7,67],[6,68,7,68],[6,69,7,69],[6,72,7,72],[1,15,1,16],[2,15,2,16],[6,61,7,61],[6,62,7,62],[6,63,7,63],[6,64,7,64]]}
[null,null,null,null,null,null,null,null,null,null,null,null,null,null,null,null,null,null,null,null,null,null,null,null,null,null,null,null,null,null,null,null,null,null,null,null,null,null,null,null,null,null,null,null,null,null,null,null,null,null,null,null,null,null,null,null,null,null,null,null,null,26]
[null,null,null,null,null,null,null,null,null,null,null,null,null,null,null,"Borough",null,"Manhattan","Year",2015]
[null,{"$f":"CONCATENATE(B4,\" Report \")","v":"Lower East Side Report "},null,null,null,null,null,null,null,null,null,null,null,null,null,"Neighborhood",null,"Lower East Side","Quarter",4]
[null,{"$f":"CONCATENATE('Interactive charts'!R3)","v":"Lower East Side"}]
[null,"4TH QUARTER 2015"]
[null,{"$f":"CONCATENATE(\"in \",CONCATENATE('Interactive charts'!R3,\", \",'Interactive charts'!R2))","v":"in Lower East Side, Manhattan"}]
[null,null,null,null,null,null,null,null,null,null,null,null,null,null,null,null,null,null,null,null,null,null,null,null,null,null,null,null,null,null,null,null,null,null,null,null,null,null,null,null,null,null,null,null,null,null,null,null,null,null,null,null,null,null,null,null,null,null,null,null,null,{"$f":"IFERROR(IF(BI9<>\"\",\"Address\",\"\"),\"\")","v":"Address"},{"$f":"IFERROR(IF(BI9<>\"\",\"Sale date\",\"\"),\"\")","v":"Sale date"},{"$f":"IFERROR(IF(BI9<>\"\",\"Sale price\",\"\"),\"\")","v":"Sale price"},{"$f":"IFERROR(IF(BI9<>\"\",\"Property type\",\"\"),\"\")","v":"Property type"},"Units",{"$f":"IFERROR(IF(BI9<>\"\",\"Price per unit\",\"\"),\"\")","v":"Price per unit"},{"$f":"IFERROR(IF(BI9<>\"\",\"Sq. Ft.\",\"\"),\"\")","v":"Sq. Ft."},{"$f":"IFERROR(IF(BK9<>\"\",\"Price per Sq. Ft.\",\"\"),\"\")","v":"Price per Sq. Ft."},{"$f":"IFERROR(IF(BK9<>\"\",\"Package deal\",\"\"),\"\")","v":"Package deal"},null,null,{"$f":"IFERROR(IF(BT9<>\"\",\"Address\",\"\"),\"\")","v":""},{"$f":"IFERROR(IF(BT9<>\"\",\"Sale date\",\"\"),\"\")","v":""},{"$f":"IFERROR(IF(BT9<>\"\",\"Sale price\",\"\"),\"\")","v":""},{"$f":"IFERROR(IF(BT9<>\"\",\"Property type\",\"\"),\"\")","v":""},{"$f":"IFERROR(IF(BT9<>\"\",\"Units\",\"\"),\"\")","v":""},{"$f":"IFERROR(IF(BT9<>\"\",\"Price per unit\",\"\"),\"\")","v":""},{"$f":"IFERROR(IF(BT9<>\"\",\"Sq. Ft.\",\"\"),\"\")","v":""},{"$f":"IFERROR(IF(BV9<>\"\",\"Price per Sq. Ft.\",\"\"),\"\")","v":""},{"$f":"IFERROR(IF(BV9<>\"\",\"Package deal\",\"\"),\"\")","v":""},null,null,{"$f":"IFERROR(IF(CE9<>\"\",\"Address\",\"\"),\"\")","v":""},{"$f":"IFERROR(IF(CE9<>\"\",\"Sale date\",\"\"),\"\")","v":""},{"$f":"IFERROR(IF(CE9<>\"\",\"Sale price\",\"\"),\"\")","v":""},{"$f":"IFERROR(IF(CE9<>\"\",\"Property type\",\"\"),\"\")","v":""},{"$f":"IFERROR(IF(CE9<>\"\",\"Units\",\"\"),\"\")","v":""},{"$f":"IFERROR(IF(CE9<>\"\",\"Price per unit\",\"\"),\"\")","v":""},{"$f":"IFERROR(IF(CE9<>\"\",\"Sq. Ft.\",\"\"),\"\")","v":""},{"$f":"IFERROR(IF(CG9<>\"\",\"Price per Sq. Ft.\",\"\"),\"\")","v":""},{"$f":"IFERROR(IF(CG9<>\"\",\"Package deal\",\"\"),\"\")","v":""}]
[]
[null,null,null,null,null,null,null,null,null,null,null,null,null,null,null,null,null,null,null,null,null,null,null,null,null,null,null,null,null,null,null,null,null,null,null,null,null,null,null,null,null,null,null,null,null,null,null,null,null,null,null,null,null,null,null,null,null,null,null,null,1,"72 Forsyth St","2015-11-24",24400000,"Medium multifamily",18,406666.66666666704,10060,773.79253480480804,"Yes",null,{"$f":"IF(BI69<$BJ$1,BI69+1,\"\")","v":""},"","","","","","","","","",null,{"$f":"IF(BT69<$BJ$1,BT69+1,\"\")","v":""},"","","","","","","","",""]
[null,null,null,null,null,null,null,null,null,null,null,null,null,null,null,null,null,null,null,null,null,null,null,null,null,null,null,null,null,null,null,null,null,null,null,null,null,null,null,null,null,null,null,null,null,null,null,null,null,null,null,null,null,null,null,null,null,null,null,null,{"$f":"IF(BI9<$BJ$1,BI9+1,\"\")","v":2},"104 Forsyth St","2015-11-24",24400000,"Medium multifamily",22,406666.66666666704,9875,773.79253480480804,"Yes",null,{"$f":"IF(BT9<$BJ$1,BT9+1,\"\")","v":""},"","","","","","","","","",null,{"$f":"IF(CE9<$BJ$1,CE9+1,\"\")","v":""},"","","","","","","","",""]
[null,null,null,null,null,null,null,null,null,null,null,null,null,null,"Multifamily Market Report,  Q4 2015",null,null,null,null,null,null,null,null,null,null,null,null,null,null,null,null,null,null,null,null,null,null,null,null,null,null,null,null,null,null,null,null,null,null,null,null,null,null,null,null,null,null,null,null,null,3,"74 Forsyth St","2015-11-24",24400000,"Medium multifamily",20,406666.66666666704,11598,773.79253480480804,"Yes",null,{"$f":"IF(BT10<$BJ$1,BT10+1,\"\")","v":""},"","","","","","","","","",null,{"$f":"IF(CE10<$BJ$1,CE10+1,\"\")","v":""},"","","","","","","","",""]
[null,null,null,null,null,null,null,null,null,null,null,null,null,null,null,null,null,null,null,null,null,null,null,null,null,null,null,null,null,null,null,null,null,null,null,null,null,null,null,null,null,null,null,null,null,null,null,null,null,null,null,null,null,null,null,null,null,null,null,null,4,"326 E 4 St","2015-11-17",20000000,"Medium multifamily",10,1000000,8625,1159.42028985507,"Yes",null,"","","","","","","","","","",null,"","","","","","","","","",""]
[null,null,null,null,null,null,null,null,null,null,null,null,null,null,null,null,null,null,null,null,null,null,null,null,null,null,null,null,null,null,null,null,null,null,null,null,null,null,null,null,null,null,null,null,null,null,null,null,null,null,null,null,null,null,null,null,null,null,null,null,5,"328 E 4 St","2015-11-17",20000000,"Medium multifamily",10,1000000,8625,1159.42028985507,"Yes",null,"","","","","","","","","","",null,"","","","","","","","","",""]
[null,null,null,null,null,null,null,null,null,null,null,null,null,null,{"$f":"CONCATENATE(R3,\", \",R2)","v":"Lower East Side, Manhattan"},null,null,null,null,null,null,null,null,null,null,null,null,null,null,null,null,null,null,null,null,null,null,null,null,null,null,null,null,null,null,null,null,null,null,null,null,null,null,null,null,null,null,null,null,null,6,"190-192 E 2 St","2015-10-02",17000000,"Medium multifamily",32,531250,20994,809.75516814327909,"No",null,"","","","","","","","","","",null,"","","","","","","","","",""]
[null,null,null,null,null,null,null,null,null,null,null,null,null,null,null,null,null,null,null,null,null,null,null,null,null,null,null,null,null,null,null,null,null,null,null,null,null,null,null,null,null,null,null,null,null,null,null,null,null,null,null,null,null,null,null,null,null,null,null,null,7,"160-162 Rivington St","2015-11-04",16050000,"Medium multifamily",23,697826.08695652196,15472,1037.35780765253,"No",null,"","","","","","","","","","",null,"","","","","","","","","",""]
[null,null,null,null,null,null,null,null,null,null,null,null,null,null,null,null,null,null,null,null,null,null,null,null,null,null,null,null,null,null,null,null,null,null,null,null,null,null,null,null,null,null,null,null,null,null,null,null,null,null,null,null,null,null,null,null,null,null,null,null,8,"102 Forsyth St","2015-12-18",16000000,"Medium multifamily",20,400000,9490,844.77296726504812,"Yes",null,"","","","","","","","","","",null,"","","","","","","","","",""]
[null,null,null,null,null,null,null,null,null,null,null,null,null,null,null,null,null,null,null,null,null,null,null,null,null,null,null,null,null,null,null,null,null,null,null,null,null,null,null,null,null,null,null,null,null,null,null,null,null,null,null,null,null,null,null,null,null,null,null,null,9,"100 Forsyth St","2015-12-18",16000000,"Medium multifamily",20,400000,9450,844.77296726504812,"Yes",null,"","","","","","","","","","",null,"","","","","","","","","",""]
[null,null,null,null,null,null,null,null,null,null,null,null,null,null,null,null,null,null,null,null,null,null,null,null,null,null,null,null,null,null,null,null,null,null,null,null,null,null,null,null,null,null,null,null,null,null,null,null,null,null,null,null,null,null,null,null,null,null,null,null,10,"249-251 Broome St","2015-10-14",12300000,"Medium multifamily",24,512500,19053,645.56762714533113,"No",null,"","","","","","","","","","",null,"","","","","","","","","",""]
[null,null,null,null,null,null,null,null,null,null,null,null,null,null,null,null,null,null,null,null,null,null,null,null,null,null,null,null,null,null,null,null,null,null,null,null,null,null,null,null,null,null,null,null,null,null,null,null,null,null,null,null,null,null,null,null,null,null,null,null,11,"620-622 E 6 St","2015-12-09",11250000,"Medium multifamily",24,468750,13546,830.50346965894005,"No",null,"","","","","","","","","","",null,"","","","","","","","","",""]
[null,null,null,null,null,null,null,null,null,null,null,null,null,null,null,null,null,null,null,null,null,null,null,null,null,null,null,null,null,null,null,null,null,null,null,null,null,null,null,null,null,null,null,null,null,null,null,null,null,null,null,null,null,null,null,null,null,null,null,null,12,"86 E 3 St","2015-12-09",8800000,"Medium multifamily",25,352000,8855,993.78881987577608,"No",null,"","","","","","","","","","",null,"","","","","","","","","",""]
[null,null,null,null,null,null,null,null,null,null,null,null,null,null,null,null,null,null,null,null,null,null,null,null,null,null,null,null,null,null,null,null,null,null,null,null,null,null,null,null,null,null,null,null,null,null,null,null,null,null,null,null,null,null,null,null,null,null,null,null,13,"424 E 14 St","2015-12-28",8200000,"Medium multifamily",23,356521.73913043499,8900,921.34831460674206,"No",null,"","","","","","","","","","",null,"","","","","","","","","",""]
[null,null,null,null,null,null,null,null,null,null,null,null,null,null,null,null,null,null,null,null,null,null,null,null,null,null,null,null,null,null,null,null,null,null,null,null,null,null,null,null,null,null,null,null,null,null,null,null,null,null,null,null,null,null,null,null,null,null,null,null,14,"276 E 10 St","2015-10-29",7250000,"Medium multifamily",12,604166.66666666698,4916,1474.7762408462202,"No",null,"","","","","","","","","","",null,"","","","","","","","","",""]
[null,null,null,null,null,null,null,null,null,null,null,null,null,null,null,null,null,null,null,null,null,null,null,null,null,null,null,null,null,null,null,null,null,null,null,null,null,null,null,null,null,null,null,null,null,null,null,null,null,null,null,null,null,null,null,null,null,null,null,null,15,"28 Forsyth St","2015-10-20",7125000,"Medium multifamily",24,296875,14442,493.35272122974703,"No",null,"","","","","","","","","","",null,"","","","","","","","","",""]
[null,null,null,null,null,null,null,null,null,null,null,null,null,null,null,null,null,null,null,null,null,null,null,null,null,null,null,null,null,null,null,null,null,null,null,null,null,null,null,null,null,null,null,null,null,null,null,null,null,null,null,null,null,null,null,null,null,null,null,null,16,"162 E Broadway","2015-12-29",6600000,"Medium multifamily",11,600000,5572,1184.4938980617399,"No",null,"","","","","","","","","","",null,"","","","","","","","","",""]
[null,null,null,null,null,null,null,null,null,null,null,null,null,null,"SALES VOLUME",null,null,null,null,"   NO. OF TRANSACTIONS",null,null,null,"AVERAGE PRICE/UNIT",null,null,null,"AVERAGE PRICE/SQ. FT.",null,null,null,null,null,null,null,null,null,null,null,null,null,null,null,null,null,null,null,null,null,null,null,null,null,null,null,null,null,null,null,null,17,"103 E 2 St","2015-11-10",6295500,"Medium multifamily",20,314775,9792,642.92279411764707,"No",null,"","","","","","","","","","",null,"","","","","","","","","",""]
[null,null,null,null,null,null,null,null,null,null,null,null,null,null,null,null,null,null,null,null,null,null,null,null,null,null,null,null,null,null,null,null,null,null,null,null,null,null,null,null,null,null,null,null,null,null,null,null,null,null,null,null,null,null,null,null,null,null,null,null,18,"58 St Marks Pl","2015-11-18",3800000,"Medium multifamily",20,190000,10905,348.46400733608402,"No",null,"","","","","","","","","","",null,"","","","","","","","","",""]
[null,null,null,null,null,null,null,null,null,null,null,null,null,null,null,null,null,null,null,null,null,null,null,null,null,null,null,null,null,null,null,null,null,null,null,null,null,null,null,null,null,null,null,null,null,null,null,null,null,null,null,null,null,null,null,null,null,null,null,null,19,"264 E 7 St","2015-10-22",3775000,"Small multifamily",3,1258333.33333333,3696,1021.3744588744601,"No",null,"","","","","","","","","","",null,"","","","","","","","","",""]
[null,null,null,null,null,null,null,null,null,null,null,null,null,null,null,null,null,null,null,null,22,null,null,null,"$369K",null,null,null,null,null,null,null,null,null,null,null,null,null,null,null,null,null,null,null,null,null,null,null,"Multifamily size","Average price per unit",null,"Average price per sq. ft. ",null,"Sales volume","Total Sq. Ft.",null,"No. of sales","No. of buildings","No. of units",null,20,"73 Monroe St","2015-10-30",3100000,"Medium multifamily",16,193750,9660,320.91097308488605,"No",null,"","","","","","","","","","",null,"","","","","","","","","",""]
[null,null,null,null,null,null,null,null,null,null,null,null,null,null,null,null,"$178M",null,null,null,null,null,null,null,null,null,null,null,null,557.57227130325805,null,null,null,null,null,null,null,null,null,null,null,null,null,null,null,null,null,null,null,"Price","Y-o-Y","Price ","Y-o-Y",null,null,null,null,null,null,null,21,"224 E 12 St","2015-12-30",2750000,"Small multifamily",7,392857.14285714302,8963,306.81691397969405,"No",null,"","","","","","","","","","",null,"","","","","","","","","",""]
[null,null,null,null,null,null,null,null,null,null,null,null,null,null,null,null,null,null,null,null,null,null,null,null,null,null,null,null,null,null,null,null,null,null,null,null,null,null,null,null,null,null,null,null,null,null,null,{"$f":"IF(BE30<>\"n/a\",AW30,\"\")","v":"Small"},"Small",298607.04166666698,-0.67480616507235669,261.22945979441602,-0.76334417827778234,7166569,27434,null,4,4,24,{"$f":"IF(BF30=\"n/a\",0,BF30)/(IF($BF$30=\"n/a\",0,$BF$30)+IF($BF$31=\"n/a\",0,$BF$31)+IF($BF$32=\"n/a\",0,$BF$32))","v":0.15384615384615385},22,"156-158 2 Ave","2015-12-21",1298824,"Medium multifamily",35,37109.257142857103,39395,32.969260058382993,"No",null,"","","","","","","","","","",null,"","","","","","","","","",""]
[null,null,null,null,null,null,null,null,null,null,null,null,null,null,null,null,null,null,null,null,null,null,null,null,null,null,null,null,null,null,null,null,null,null,null,null,null,null,null,null,null,null,null,null,null,null,null,{"$f":"IF(BE31<>\"n/a\",AW31,\"\")","v":"Medium"},"Medium",372948.68995633197,-0.13857103867890785,585.43661701500503,-0.16846572328015963,170810500,291766,null,18,22,458,{"$f":"IF(BF31=\"n/a\",0,BF31)/(IF($BF$30=\"n/a\",0,$BF$30)+IF($BF$31=\"n/a\",0,$BF$31)+IF($BF$32=\"n/a\",0,$BF$32))","v":0.84615384615384615},23,"145 2 Ave","2015-12-21",757647,"Medium multifamily",27,28061,25341,29.898070320823997,"No",null,"","","","","","","","","","",null,"","","","","","","","","",""]
[null,null,null,null,null,null,null,null,null,null,null,null,null,null,null,null,null,null,null,null,null,null,null,null,null,null,null,null,null,null,null,null,null,null,null,null,null,null,null,null,null,null,null,null,null,null,null,{"$f":"IF(BE32<>\"n/a\",AW32,\"\")","v":""},"Large","n/a","n/a","n/a","n/a","n/a","n/a",null,"n/a","n/a","n/a",0,24,"141-143 2 Ave","2015-12-21",583529,"Medium multifamily",22,26524.0454545455,17200,33.926104651162795,"No",null,"","","","","","","","","","",null,"","","","","","","","","",""]
[null,null,null,null,null,null,null,null,null,null,null,null,null,null,null,null,null,null,null,null,null,null,null,null,null,null,null,null,null,null,null,null,null,null,null,null,null,null,null,null,null,null,null,null,null,null,null,null,"Small (up to 10 units), Medium (between 10 and 50 units), Large (more than 50 units)",null,null,null,null,null,null,null,null,null,null,null,25,"149 2 Ave","2015-12-21",392157,"Small multifamily",6,65359.5,7743,50.646648585819399,"No",null,"","","","","","","","","","",null,"","","","","","","","","",""]
[null,null,null,null,null,null,null,null,null,null,null,null,null,null,null,null,null,null,null,null,null,null,null,null,null,null,null,null,null,null,null,null,null,null,null,null,null,null,null,null,null,null,null,null,null,null,null,null,null,null,null,null,null,null,null,null,null,null,null,null,26,"157 2 Ave","2015-12-21",249412,"Small multifamily",8,31176.5,7032,35.468145620022803,"No",null,"","","","","","","","","","",null,"","","","","","","","","",""]
[null,null,null,null,null,null,null,null,null,null,null,null,null,null,null,"-28% Y-o-Y",null,null,null,"16% Y-o-Y",null,null,null,"-16% Y-o-Y",null,null,null,"8% Y-o-Y",null,null,null,null,null,null,null,null,null,null,null,null,null,null,null,null,null,null,null,null,null,null,null,null,null,null,null,null,null,null,null,null,"","","","","","","","","","",null,"","","","","","","","","","",null,"","","","","","","","","",""]
[null,null,null,null,null,null,null,null,null,null,null,null,null,null,null,null,null,null,null,null,null,null,null,null,null,null,null,null,null,null,null,null,null,null,null,null,null,null,null,null,null,null,null,null,null,null,null,null,null,null,null,null,null,null,null,null,null,null,null,null,"","","","","","","","","","",null,"","","","","","","","","","",null,"","","","","","","","","",""]
[null,null,null,null,null,null,null,null,null,null,null,null,null,null,null,null,null,null,null,null,null,null,null,null,null,null,null,null,null,null,null,null,null,null,null,null,null,null,null,null,null,null,null,null,null,null,null,null,null,null,null,null,null,null,null,null,null,null,null,null,"","","","","","","","","","",null,"","","","","","","","","","",null,"","","","","","","","","",""]
[null,null,null,null,null,null,null,null,null,null,null,null,null,null,null,null,null,null,null,null,null,null,null,null,null,null,null,null,null,null,null,null,null,null,null,null,null,null,null,null,null,null,null,null,null,null,null,null,null,null,null,null,null,null,null,null,null,null,null,null,"","","","","","","","","","",null,"","","","","","","","","","",null,"","","","","","","","","",""]
[null,null,null,null,null,null,null,null,null,null,null,null,null,null,null,null,null,null,null,null,null,null,null,null,null,null,null,null,null,null,null,null,null,null,null,null,null,null,null,null,null,null,null,null,null,null,null,null,null,null,null,null,null,null,null,null,null,null,null,null,"","","","","","","","","","",null,"","","","","","","","","","",null,"","","","","","","","","",""]
[null,null,null,null,null,null,null,null,null,null,null,null,null,null,null,null,null,null,null,null,null,null,null,null,null,null,null,null,null,null,null,null,null,null,null,null,null,null,null,null,null,null,null,null,null,null,null,null,null,null,null,null,null,null,null,null,null,null,null,null,"","","","","","","","","","",null,"","","","","","","","","","",null,"","","","","","","","","",""]
[null,null,null,null,null,null,null,null,null,null,null,null,null,null,null,null,null,null,null,null,null,null,null,null,null,null,null,null,null,null,null,null,null,null,null,null,null,null,null,null,null,null,null,null,null,null,null,null,null,null,null,null,null,null,null,null,null,null,null,null,"","","","","","","","","","",null,"","","","","","","","","","",null,"","","","","","","","","",""]
[null,null,null,null,null,null,null,null,null,null,null,null,null,null,null,null,null,null,null,null,null,null,null,null,null,null,null,null,null,null,null,null,null,null,null,null,null,null,null,null,null,null,null,null,null,null,null,null,null,null,null,null,null,null,null,null,null,null,null,null,"","","","","","","","","","",null,"","","","","","","","","","",null,"","","","","","","","","",""]
[null,null,null,null,null,null,null,null,null,null,null,null,null,null,null,null,null,null,null,null,null,null,null,null,null,null,null,null,null,null,null,null,null,null,null,null,null,null,null,null,null,null,null,null,null,null,null,null,null,null,null,null,null,null,null,null,null,null,null,null,"","","","","","","","","","",null,"","","","","","","","","","",null,"","","","","","","","","",""]
[null,null,null,null,null,null,null,null,null,null,null,null,null,null,null,null,null,null,null,null,null,null,null,null,null,null,null,null,null,null,null,null,null,null,null,null,null,null,null,null,null,null,null,null,null,null,null,null,null,null,null,null,null,null,null,null,null,null,null,null,"","","","","","","","","","",null,"","","","","","","","","","",null,"","","","","","","","","",""]
[null,null,null,null,null,null,null,null,null,null,null,null,null,null,null,null,null,null,null,null,null,null,null,null,null,null,null,null,null,null,null,null,null,null,null,null,null,null,null,null,null,null,null,null,null,null,null,null,null,null,null,null,null,null,null,null,null,null,null,null,"","","","","","","","","","",null,"","","","","","","","","","",null,"","","","","","","","","",""]
[null,null,null,null,null,null,null,null,null,null,null,null,null,null,null,null,null,null,null,null,null,null,null,null,null,null,null,null,null,null,null,null,null,null,null,null,null,null,null,null,null,null,null,null,null,null,null,null,null,null,null,null,null,null,null,null,null,null,null,null,"","","","","","","","","","",null,"","","","","","","","","","",null,"","","","","","","","","",""]
[null,null,null,null,null,null,null,null,null,null,null,null,null,null,null,null,null,null,null,null,null,null,null,null,null,null,null,null,null,null,null,"Quarter","2013",null,"2014",null,"2015",null,null,null,null,null,null,null,null,null,null,null,null,null,null,null,null,null,null,null,null,null,null,null,"","","","","","","","","","",null,"","","","","","","","","","",null,"","","","","","","","","",""]
[null,null,null,null,null,null,null,null,null,null,null,null,null,null,null,null,null,null,null,null,null,null,null,null,null,null,null,null,null,null,null,"Q1",466,null,185,null,617,null,null,null,null,null,null,null,null,null,null,null,null,null,null,null,null,null,null,null,null,null,null,null,"","","","","","","","","","",null,"","","","","","","","","","",null,"","","","","","","","","",""]
[null,null,null,null,null,null,null,null,null,null,null,null,null,null,null,null,null,null,null,null,null,null,null,null,null,null,null,null,null,null,null,"Q2",282,null,174,null,480,null,null,null,null,null,null,null,null,null,null,null,null,null,null,null,null,null,null,null,null,null,null,null,"","","","","","","","","","",null,"","","","","","","","","","",null,"","","","","","","","","",""]
[null,null,null,null,null,null,null,null,null,null,null,null,null,null,null,null,null,null,null,null,null,null,null,null,null,null,null,null,null,null,null,"Q3",339,null,236,null,551,null,null,null,null,null,null,null,null,null,null,null,null,null,null,null,null,null,null,null,null,null,null,null,"","","","","","","","","","",null,"","","","","","","","","","",null,"","","","","","","","","",""]
[null,null,null,null,null,null,null,null,null,null,null,null,null,null,null,null,null,null,null,null,null,null,null,null,null,null,null,null,null,null,null,"Q4",430,null,559,null,482,null,null,null,null,null,null,null,null,null,null,null,null,null,null,null,null,null,null,null,null,null,null,null,"","","","","","","","","","",null,"","","","","","","","","","",null,"","","","","","","","","",""]
[null,null,null,null,null,null,null,null,null,null,null,null,null,null,null,null,null,null,null,null,null,null,null,null,null,null,null,null,null,null,null,null,null,null,null,null,null,null,null,null,null,null,null,null,null,null,null,null,null,null,null,null,null,null,null,null,null,null,null,null,"","","","","","","","","","",null,"","","","","","","","","","",null,"","","","","","","","","",""]
[null,null,null,null,null,null,null,null,null,null,null,null,null,null,null,null,null,null,null,null,null,null,null,null,null,null,null,null,null,null,null,null,null,null,null,null,null,null,null,null,null,null,null,null,null,null,null,null,null,null,null,null,null,null,null,null,null,null,null,null,"","","","","","","","","","",null,"","","","","","","","","","",null,"","","","","","","","","",""]
[null,null,null,null,null,null,null,null,null,null,null,null,null,null,null,null,null,null,null,null,null,null,null,null,null,null,null,null,null,null,null,null,null,null,null,null,null,null,null,null,null,null,null,null,null,null,null,null,null,null,null,null,null,null,null,null,null,null,null,null,"","","","","","","","","","",null,"","","","","","","","","","",null,"","","","","","","","","",""]
[null,null,null,null,null,null,null,null,null,null,null,null,null,null,null,null,null,null,null,null,null,null,null,null,null,null,null,null,null,null,null,null,null,null,null,null,null,null,null,null,null,null,null,null,null,null,null,null,null,null,null,null,null,null,null,null,null,null,null,null,"","","","","","","","","","",null,"","","","","","","","","","",null,"","","","","","","","","",""]
[null,null,null,null,null,null,null,null,null,null,null,null,null,null,null,null,null,null,null,null,null,null,null,null,null,null,null,null,null,null,null,"Quarter","2013",null,"2014",null,"2015",null,null,null,null,null,null,null,null,null,null,null,null,null,null,null,null,null,null,null,null,null,null,null,"","","","","","","","","","",null,"","","","","","","","","","",null,"","","","","","","","","",""]
[null,null,null,null,null,null,null,null,null,null,null,null,null,null,null,null,null,null,null,null,null,null,null,null,null,null,null,null,null,null,null,"Q1",31,null,13,null,22,null,null,null,null,null,null,null,null,null,null,null,null,null,null,null,null,null,null,null,null,null,null,null,"","","","","","","","","","",null,"","","","","","","","","","",null,"","","","","","","","","",""]
[null,null,null,null,null,null,null,null,null,null,null,null,null,null,null,null,null,null,null,null,null,null,null,null,null,null,null,null,null,null,null,"Q2",17,null,11,null,21,null,null,null,null,null,null,null,null,null,null,null,null,null,null,null,null,null,null,null,null,null,null,null,"","","","","","","","","","",null,"","","","","","","","","","",null,"","","","","","","","","",""]
[null,null,null,null,null,null,null,null,null,null,null,null,null,null,null,null,null,null,null,null,null,null,null,null,null,null,null,null,null,null,null,"Q3",20,null,12,null,28,null,null,null,null,null,null,null,null,null,null,null,null,null,null,null,null,null,null,null,null,null,null,null,"","","","","","","","","","",null,"","","","","","","","","","",null,"","","","","","","","","",""]
[null,null,null,null,null,null,null,null,null,null,null,null,null,null,null,null,null,null,null,null,null,null,null,null,null,null,null,null,null,null,null,"Q4",19,null,21,null,26,null,null,null,null,null,null,null,null,null,null,null,null,null,null,null,null,null,null,null,null,null,null,null,"","","","","","","","","","",null,"","","","","","","","","","",null,"","","","","","","","","",""]
[null,null,null,null,null,null,null,null,null,null,null,null,null,null,null,null,null,null,null,null,null,null,null,null,null,null,null,null,null,null,null,null,null,null,null,null,null,null,null,null,null,null,null,null,null,null,null,null,null,null,null,null,null,null,null,null,null,null,null,null,"","","","","","","","","","",null,"","","","","","","","","","",null,"","","","","","","","","",""]
[null,null,null,null,null,null,null,null,null,null,null,null,null,null,null,null,null,null,null,null,null,null,null,null,null,null,null,null,null,null,null,null,null,null,null,null,null,null,null,null,null,null,null,null,null,null,null,null,null,null,null,null,null,null,null,null,null,null,null,null,"","","","","","","","","","",null,"","","","","","","","","","",null,"","","","","","","","","",""]
[null,null,null,null,null,null,null,null,null,null,null,null,null,null,null,null,null,null,null,null,null,null,null,null,null,null,null,null,null,null,null,null,null,null,null,null,null,null,null,null,null,null,null,null,null,null,null,null,null,null,null,null,null,null,null,null,null,null,null,null,"","","","","","","","","","",null,"","","","","","","","","","",null,"","","","","","","","","",""]
[null,null,null,null,null,null,null,null,null,null,null,null,null,null,null,null,null,null,null,null,null,null,null,null,null,null,null,null,null,null,null,"Quarter","2013",null,"2014",null,"2015",null,null,null,null,null,null,null,null,null,null,null,null,null,null,null,null,null,null,null,null,null,null,null,"","","","","","","","","","",null,"","","","","","","","","","",null,"","","","","","","","","",""]
[null,null,null,null,null,null,null,null,null,null,null,null,null,null,null,null,null,null,null,null,null,null,null,null,null,null,null,null,null,null,null,"Q1",28,null,13,null,20,null,null,null,null,null,null,null,null,null,null,null,null,null,null,null,null,null,null,null,null,null,null,null,"","","","","","","","","","",null,"","","","","","","","","","",null,"","","","","","","","","",""]
[null,null,null,null,null,null,null,null,null,null,null,null,null,null,null,null,null,null,null,null,null,null,null,null,null,null,null,null,null,null,null,"Q2",16,null,11,null,16,null,null,null,null,null,null,null,null,null,null,null,null,null,null,null,null,null,null,null,null,null,null,null,"","","","","","","","","","",null,"","","","","","","","","","",null,"","","","","","","","","",""]
[null,null,null,null,null,null,null,null,null,null,null,null,null,null,null,null,null,null,null,null,null,null,null,null,null,null,null,null,null,null,null,"Q3",18,null,12,null,28,null,null,null,null,null,null,null,null,null,null,null,null,null,null,null,null,null,null,null,null,null,null,null,"","","","","","","","","","",null,"","","","","","","","","","",null,"","","","","","","","","",""]
[null,null,null,null,null,null,null,null,null,null,null,null,null,null,null,null,null,null,null,null,null,null,null,null,null,null,null,null,null,null,null,"Q4",17,null,19,null,22,null,null,null,null,null,null,null,null,null,null,null,null,null,null,null,null,null,null,null,null,null,null,null,"","","","","","","","","","",null,"","","","","","","","","","",null,"","","","","","","","","",""]
[null,null,null,null,null,null,null,null,null,null,null,null,null,null,null,null,null,null,null,null,null,null,null,null,null,null,null,null,null,null,null,null,null,null,null,null,null,null,null,null,null,null,null,null,null,null,null,null,null,null,null,null,null,null,null,null,null,null,null,null,"","","","","","","","","","",null,"","","","","","","","","","",null,"","","","","","","","","",""]
[null,null,null,null,null,null,null,null,null,null,null,null,null,null,null,null,null,null,null,null,null,null,null,null,null,null,null,null,null,null,null,null,null,null,null,null,null,null,null,null,null,null,null,null,null,null,null,null,null,null,null,null,null,null,null,null,null,null,null,null,null,null,null,null,null,"",null,null,"","","",null,null,null,null,null,"",null,null,"","","",null,null,null,null,null,"",null,null,"","",""]